Cogmind - Beta 14 @@@ ROGUE MODE // 2025.03.22 @ 11:39:01 Player: winnking222 Result: Destroyed by 0P-XED(R) with Subdweller Laser Performance ------------- Evolutions (0) 0 Regions Visited (3) 600 Robots Destroyed (41) 205 Value Destroyed (987) 987 Prototype IDs (2) 40 Alien Tech Used (0) 0 Bonus (0) 0 TOTAL SCORE: 1832 Bonus ------- None Cogmind --------- Core Integrity 0/250 Matter 190/300 Energy 260/265 System Corruption 0% Temperature Cool (6) Movement Rolling (130) Ox2 Location -10/Subcaves Parts ------- > --- POWER (1) -------- Improved Ion Engine > --- PROPULSION (2) --- Spiked Treads Subdweller Monowheel > --- UTILITY (2) ------ Improved Heat Sink High-capacity Storage Unit > --- WEAPON (2) ------- Spread Laser Subdweller Shrapnel Launcher > --- INVENTORY (20) --- Improved Ion Engine Subdweller Power Source Light Nuclear Core Subdweller Monowheel High-capacity Matter Pod (200) Scrap Shield Riot Gun Spread Laser Subdweller Laser Particle Cannon Particle Cannon Battle Rifle Makeshift Axe Peak State ------------ > --- POWER ------------ Improved Ion Engine > --- PROPULSION ------- Spiked Treads Subdweller Monowheel > --- UTILITY ---------- Improved Heat Sink High-capacity Storage Unit > --- WEAPON ----------- Spread Laser Makeshift Axe > --- INVENTORY -------- Improved Ion Engine Subdweller Power Source Light Nuclear Core Subdweller Monowheel High-capacity Matter Pod Scrap Shield Riot Gun Spread Laser Subdweller Laser Particle Cannon Particle Cannon Battle Rifle Subdweller Shrapnel Launcher [Rating: 18] Favorites ----------- Power Improved Ion Engine Engine Improved Ion Engine Propulsion Light Treads Treads Light Treads Wheel Subdweller Monowheel Utility High-capacity Storage Unit Device Improved Heat Sink Storage High-capacity Storage Unit Protection Light Armor Plating Weapon Spread Laser Energy Gun Spread Laser Energy Cannon Particle Cannon Ballistic Gun Autogun Launcher Subdweller Shrapnel Launcher Impact Weapon Hammer Slashing Weapon Makeshift Axe Build | -11 -10 -10 -10 ------- Run | Yrd Mat Min Sub Slots Evolved . | . . . . Power . | . . . . Propulsion . | . . . . Utility . | . . . . Weapon . | . . . . Parts Attached 50 | 6 13 7 24 Power 4 | 1 1 1 1 Engine 4 | 1 1 1 1 Core . | . . . . Reactor . | . . . . Propulsion 10 | 2 1 . 7 Treads 7 | 2 1 . 4 Leg . | . . . . Wheel 3 | . . . 3 Hover . | . . . . Flight . | . . . . Utility 7 | 1 3 1 2 Device 2 | . . . 2 Storage 2 | 1 1 . . Processor . | . . . . Hackware . | . . . . Protection 3 | . 2 1 . Artifact . | . . . . Weapon 29 | 2 8 5 14 Energy Gun 11 | . 4 3 4 Energy Cannon 2 | . 2 . . Ballistic Gun 11 | 2 1 2 6 Ballistic Cannon . | . . . . Launcher 1 | . . . 1 Special Weapon . | . . . . Impact Weapon 3 | . 1 . 2 Slashing Weapon 1 | . . . 1 Piercing Weapon . | . . . . Special Melee Weapon . | . . . . Unidentified Prototypes . | . . . . Parts Lost 13 | . 1 1 11 Power 1 | . . . 1 Propulsion 4 | . 1 . 3 Utility 3 | . . 1 2 Weapon 5 | . . . 5 Highest Loss Streak 6 | . 1 1 6 To Critical Strikes . | . . . . Average Slot Usage (%) 98 | . 97 99 99 Engine 13 | . 14 14 13 Treads 26 | . 27 28 24 Wheel 1 | . . . 3 Device 5 | . . . 11 Storage 14 | . 14 14 14 Protection 7 | . 11 13 2 Energy Gun 12 | . 17 14 7 Energy Cannon 1 | . 5 . . Ballistic Gun 13 | . 2 13 19 Peak Build Rating 18 | 6 12 12 18 Average Rating 13 | 5 10 11 15 On Entrance 7 | . 6 11 12 Naked Turns . | . . . . Heaviest Build 58 | 13 58 56 56 Greatest Support 40 | 40 40 40 40 Greatest Overweight (x) 2 | . 1 1 2 Average Overweight (x) . | . . 1 1 Largest Inventory Capacity 20 | 8 20 20 20 Average Capacity 18 | 7 16 20 20 Most Carried 18 | 5 12 13 18 Average Carried 12 | 1 8 12 15 Final Capacity 20 | 8 20 20 20 Final Carried 14 | 1 12 12 14 Class Distribution -------------------- 100% | Mutant Dominant Class ---------------- Mutant | -10/Materials Mutant | -10/Mines Mutant | -10/Subcaves Resources | -11 -10 -10 -10 ----------- Run | Yrd Mat Min Sub Matter Collected 1195 | 281 245 388 281 Remotely . | . . . . Salvage Created 1098 | 65 359 304 370 Parts 67 | 2 20 19 26 Haulers Intercepted 2 | . 2 . . Recyclers Shooed . | . . . . Parts Field Recycled . | . . . . Retrieved Matter . | . . . . Parts Self-Destructed 5 | . . . 5 Prevented . | . . . . Kills | -11 -10 -10 -10 ------- Run | Yrd Mat Min Sub Combat Hostiles Destroyed 30 | . 7 10 13 Guns 28 | . 6 10 12 AOE 2 | . 1 . 1 Classes Destroyed 8 | 1 6 . 1 Builder 5 | . 5 . . Tunneler 2 | . 1 1 . Hauler 2 | . 2 . . Recycler 1 | 1 . . . Watcher 1 | . 1 . . Swarmer 10 | . 3 4 3 Grunt 10 | . 4 6 . Subdweller 10 | . . . 10 Best Kill Streak 3 | 1 3 3 3 Combat Bots Only 3 | . 3 2 3 Max Kills in Single Turn 2 | 1 2 2 1 Gunslinging 1 | . 1 . . Exploded 1 | . 1 . 1 Melee . | . . . . Uniques/NPCs Destroyed . | . . . . Combat | -11 -10 -10 -10 -------- Run | Yrd Mat Min Sub Hostile Shots Fired 165 | . 40 50 75 Missed 43 | . 12 13 18 Damage Taken 2308 | . 415 487 1406 Core 256 | . 35 67 154 Absorbed by Shields . | . . . . Core Remaining (%) 100 | 100 . . . Volleys Fired 89 | 6 23 30 30 Largest 2 | 2 2 2 2 Hottest 136 | 40 136 130 130 Shots Fired 178 | 12 46 60 60 Gun 157 | 12 28 60 57 Cannon 18 | . 18 . . Launcher 3 | . . . 3 Special . | . . . . Kinetic 93 | 12 7 38 36 Thermal 85 | . 39 22 24 Explosive . | . . . . Electromagnetic . | . . . . Robot Hit Streak 15 | 2 6 13 15 Robot Miss Streak 7 | 5 7 7 7 Penetration Max . | . . . . Secondary Targets 9 | . 2 3 4 Max Gunslinging Chain 1 | . 1 1 1 Shots Hit Robots 143 | 5 41 46 51 Core Hits 114 | 3 33 35 43 Critical Kills . | . . . . Critical Parts Destroyed 1 | . 1 . . Critical Strikes 2 | . 1 . 1 Destroy 1 | . . . 1 Smash 1 | . 1 . . Melee Attacks 45 | . 31 . 14 Impact 43 | . 31 . 12 Slashing 2 | . . . 2 Piercing . | . . . . Sneak Attacks 6 | . 6 . . Combat Hostiles . | . . . . Follow-up Attacks . | . . . . Damage Inflicted 2723 | 57 1046 614 1006 Guns 1763 | 57 281 614 811 Cannons 263 | . 263 . . Explosions 345 | . 150 . 195 Melee 352 | . 352 . . Ramming . | . . . . Kinetic 1165 | 57 37 393 678 Thermal 1206 | . 657 221 328 Explosive . | . . . . Electromagnetic . | . . . . Impact 352 | . 352 . . Slashing . | . . . . Piercing . | . . . . Highest Corruption . | . . . . Average Corruption . | . . . . Corruption Purged . | . . . . Corruption Blocked . | . . . . Overload Shots . | . . . . Overflow Damage 267 | . 267 . . Projectiles 15 | . 15 . . Explosions 50 | . 50 . . Melee 202 | . 202 . . Knockbacks . | . . . . Impact . | . . . . Kinetic . | . . . . Secondary . | . . . . Self-Inflicted Damage 150 | . 114 . 36 Shots 2 | . 1 . 1 Rammed . | . . . . Targets Rammed . | . . . . Kicked . | . . . . Crushed . | . . . . Highest Temperature 327 | . 327 316 10 Average Temperature 111 | . 114 115 5 Received Heat Transfer 561 | . 123 276 162 Siege Activations . | . . . . Robots Corrupted 3 | . 3 . . Combat Hostiles . | . . . . Parts Fried 9 | . 9 . . Impact Corruptions 10 | . 10 . . Robots Melted . | . . . . Combat Hostiles . | . . . . Parts Melted 2 | . 1 . 1 Heat Transferred 1546 | . 876 265 405 Parts Sabotaged . | . . . . Parts Stolen . | . . . . Parts Stripped . | . . . . Power Chain Reactions . | . . . . Alert | -11 -10 -10 -10 ------- Run | Yrd Mat Min Sub Peak Influence 155 | 5 155 130 . Initial 3 | . 3 . . Average 43 | 1 58 33 . Maximum Alert Level . | . . . . Low Security (%) 100 | 100 100 100 . Level 1 . | . . . . Level 2 . | . . . . Level 3 . | . . . . Level 4 . | . . . . Level 5 . | . . . . High Security . | . . . . Max Security . | . . . . Squads Dispatched 1 | . 1 . . Investigation . | . . . . Extermination . | . . . . Reinforcement 1 | . 1 . . Assault . | . . . . Garrison . | . . . . Intercept . | . . . . Searches Triggered . | . . . . Construction Impeded . | . . . . Haulers Reinforced . | . . . . Active Scanning Responses . | . . . . Cargo Convoy Interrupts . | . . . . Stealth | -11 -10 -10 -10 --------- Run | Yrd Mat Min Sub Distress Signals 1 | . 1 . . Communications Jammed . | . . . . Distress Signals . | . . . . Times Spotted 49 | . 14 12 23 Peak Tracking Total 7 | . 3 2 7 Tactical Retreats 1 | . . 1 . Traps | -11 -10 -10 -10 ------- Run | Yrd Mat Min Sub Traps Triggered 2 | . . . 2 Indirectly . | . . . . Trap Hack Attempts . | . . . . Triggered . | . . . . Disarmed . | . . . . Reprogrammed . | . . . . Reused . | . . . . Traps Extracted . | . . . . Installed . | . . . . Triggered . | . . . . Machines | -11 -10 -10 -10 ---------- Run | Yrd Mat Min Sub Machines Disabled 3 | . 3 . . Max in Single Turn 2 | . 2 . . Machines Repaired . | . . . . Machines Dismantled . | . . . . Machines Sabotaged . | . . . . Overloaded Fab Kills . | . . . . Hacking | -11 -10 -10 -10 --------- Run | Yrd Mat Min Sub Machines Accessed 6 | . 3 . 3 Terminals 3 | . 3 . . Fabricators . | . . . . Repair Stations . | . . . . Recycling Units . | . . . . Scanalyzers . | . . . . Garrison Access . | . . . . Total Hacks 16 | . 9 . 7 Successful 10 | . 3 . 7 Failed 6 | . 6 . . Catastrophic . | . . . . Database Lockouts . | . . . . Manual . | . . . . Terminals 9 | . 9 . . Fabricators . | . . . . Repair Stations . | . . . . Recycling Units . | . . . . Scanalyzers . | . . . . Garrison Access . | . . . . Terminal Hacks 10 | . 3 . 7 Record 5 | . . . 5 Prototype ID Bank 1 | . 1 . . Open Door 1 | . . . 1 Emergency Access Points 1 | . 1 . . Zone Layout 1 | . 1 . . Release Object 1 | . . . 1 Fabricator Hacks . | . . . . Repair Station Hacks . | . . . . Recycling Unit Hacks . | . . . . Scanalyzer . | . . . . Garrison Access Hacks . | . . . . Unauthorized Hacks . | . . . . Terminals . | . . . . Fabricators . | . . . . Repair Stations . | . . . . Recycling Units . | . . . . Scanalyzers . | . . . . Garrison Access . | . . . . Data Cores Recovered . | . . . . Used . | . . . . Hacking Detections 2 | . 2 . . Full Trace Events 1 | . 1 . . Feedback Events . | . . . . Feedback Blocked . | . . . . Robot Schematics Acquired . | . . . . Robots Built . | . . . . Authchips . | . . . . Time . | . . . . Total Robot Build Rating . | . . . . Part Schematics Acquired . | . . . . Parts Built . | . . . . Authchips . | . . . . Time . | . . . . Total Part Build Rating . | . . . . Parts Repaired . | . . . . Time . | . . . . Parts Recycled . | . . . . Recycled Matter . | . . . . Retrieved Matter . | . . . . Retrieved Components . | . . . . Parts Scanalyzed . | . . . . Part Schematics Acquired . | . . . . Parts Damaged . | . . . . Bothacking | -11 -10 -10 -10 ------------ Run | Yrd Mat Min Sub Used RIF Installer . | . . . . Robots Hacked . | . . . . Non-combat . | . . . . Combat . | . . . . Robot Hacks Applied . | . . . . Relay Couplers Released . | . . . . Fabnet Peak Effective % . | . . . . Robots Rewired . | . . . . Allies Hacked . | . . . . Hacks Repelled . | . . . . Allies | -11 -10 -10 -10 -------- Run | Yrd Mat Min Sub Total Allies . | . . . . Largest Group . | . . . . Highest-Rated Group . | . . . . Highest-Rated Ally . | . . . . Total Orders . | . . . . Ally Attacks . | . . . . Total Damage . | . . . . Kills . | . . . . Allies Corrupted . | . . . . Allies Melted . | . . . . Intel | -11 -10 -10 -10 ------- Run | Yrd Mat Min Sub Robot Analysis Total . | . . . . Derelict Logs Recovered 3 | . . 2 1 Drone Launches . | . . . . Drone Recoveries . | . . . . Exploration | -11 -10 -10 -10 ------------- Run | Yrd Mat Min Sub Turns Passed 4819 | 120 1249 1261 2189 Spaces Moved 1632 | 66 468 460 638 Core 23 | 23 . . . Treads 1391 | 43 468 460 420 Legs . | . . . . Wheels 218 | . . . 218 Hover . | . . . . Flight . | . . . . Fastest Speed 50 | 50 160 240 130 Average Speed 215 | 121 204 240 216 Slowest Speed 360 | 160 240 240 360 Overloaded Moves . | . . . . Propulsion Burnouts . | . . . . Robots Hopped . | . . . . Cave-ins Triggered . | . . . . Exploration Rate (%) 47 | 6 65 85 34 Regions Visited 3 Branch Regions 2 Pre-discovered Areas 2 | . . 2 . Known Exits Taken . | . . . . Unknown Exits Taken 3 | 1 1 1 . Scrap Searched 5 | . . 1 4 Spaces Dug 14 | . 7 . 7 Terrain Destroyed 78 | . 33 . 45 Melee 14 | . 7 . 7 Projectile . | . . . . AOE 64 | . 26 . 38 Terrain Rammed . | . . . . Walls Destroyed . | . . . . Machines Disabled . | . . . . Actions | -11 -10 -10 -10 --------- Run | Yrd Mat Min Sub Total 2676 | 95 658 563 1360 Wait 803 | 12 100 62 629 Move 1629 | 65 467 459 638 Hop . | . . . . Pick Up 43 | 6 18 3 16 Fast Attach 1 | 1 . . . Attach 20 | 5 2 1 12 Detach . | . . . . Swap 29 | . 11 6 12 Drop 12 | . 6 2 4 Fire 89 | 6 23 30 30 Melee 45 | . 31 . 14 Ram . | . . . . Kick . | . . . . Crush . | . . . . Escape Stasis . | . . . . Rewire 5 | . . . 5 Trap . | . . . . Miscellaneous . | . . . . Route ------- -11/Scrapyard -10/Materials (discovered 3 exits: [*Mat x2] / [*Min]) -10/Mines (discovered 2 exits: [*Mat] / *Sub) -10/Subcaves (discovered 1 exit: Rec) History --------- Turn | Location | Event 5 | -11/Scrapyard | Discovered new exit (range 15) 121 | -11/Scrapyard | Entered Materials 314 | -10/Materials | Build established: Mutant 480 | -10/Materials | Discovered new exit (range 16) 792 | -10/Materials | Discovered new exit (range 7) 932 | -10/Materials | Discovered new exit (range 5) 1370 | -10/Materials | Entered Mines 1769 | -10/Mines | Discovered new exit (range 12) 1863 | -10/Mines | Discovered new exit (range 4) 2052 | -10/Mines | Learned location of Storage (-9) 2631 | -10/Mines | Entered Subcaves 2632 | -10/Subcaves | Shifting Twisted Machinery released Barrage Gun 2632 | -10/Subcaves | Shifting Twisted Machinery released Spk. Treads 3006 | -10/Subcaves | Ambushed by swarm of Subdwellers 3006 | -10/Subcaves | Ambushed by Subdwellers from Twisted Machinery 3010 | -10/Subcaves | Ambushed by Subdwellers from Twisted Machinery 3016 | -10/Subcaves | Ambushed by Subdwellers from Twisted Machinery 3057 | -10/Subcaves | Lost 3 parts (1n1u1w) 3371 | -10/Subcaves | Visited Clippyterm 3378 | -10/Subcaves | Identified exit to Recycling 3426 | -10/Subcaves | Ambushed by Subdweller buried in earth 3434 | -10/Subcaves | Core integrity fell below 50% 4189 | -10/Subcaves | A swath of the cavern ceiling suddenly collapsed 4261 | -10/Subcaves | Lost 6 parts (1p1n1u3w) 4267 | -10/Subcaves | Core integrity fell below 20% 4381 | -10/Subcaves | Disturbed a concealed Subdweller 4811 | -10/Subcaves | A Subdweller sparked back to life 4811 | -10/Subcaves | A Subdweller sparked back to life 4811 | -10/Subcaves | A Subdweller sparked back to life 4820 | -10/Subcaves | Destroyed by 0P-XED(R) with Subdweller Laser Last Messages --------------- >>Record! "Subatomizer Containment" Subatomizers are really quite dangerous, especially when stimulated during the collection process in preparation for SEP insertion. Secure containment is priority number one! Although mostly just a persistent nuisance in their natural Subcaves environment where a certain balance has been achieved, there is a high probability that sudden introduction into previously unexposed areas could cause more extreme side effects. Take all precautions to prevent this from happening. >>Release Inventory Accessing inventory controls... Collection purity confirmed 100%... Ejecting SUBCON Basin... Delivery behind schedule, handle with care! 04661_ Dropped Broken Sub. Monowheel. 04666_ Dropped Spread Laser. 04811_ P7-QR3(R) creaks and sparks as it begins to move. 04811_ GA-7MI(R) creaks and sparks as it begins to move. 04811_ 0P-XED(R) creaks and sparks as it begins to move. 04816_ P7-QR3(R) destroyed. 04819_ GA-7MI(R) affixes Scrap Shield Fragment to Scrap Shield. Map ----- +----------------------------------------------------+ | ???????????????????????????????????? | | ???????????????????????????????????? | | ???????????????????????????????????? | | ???????????????????????????????????? | | ???????????????????????????????????? | | ???????????????????????????????????? | | ???????????????????????????????????? | | ???????????????????????????????????? | | ???????????????????????????????????? | | ???????????????????????????????????? | | ???????????????????????????????????? | | ???????????????????????????????????? | | ???????????????????????????????????? | | ????????????????????????#######????? | | ????????????????????????#"""""#????? | | ????????????????????????#""X""#????? | | ????????????????????????#" "#????? | | ????????????????????????### ###????? | | ???????????????????######## ######## | | ???????????????##### # ## ## # # | | ??????????????## | | ????????######; | | ????????? #;;;; ### ## # | | ?????????#; ;### ##### | | ?????????#; # #??## | | ??????????#@ ;# # # | | ?????????#; =R ;;# | | ?????????## R ; ### | | ??????????#;;; ; ##?#### ## | | ??????????### # ;#?????##### | | ?????????????## ;??????????? | | ??????????????# ##??????????? | | ??????????????## ####???????????? | | ???????????????# #??????????????? | | ???????????????# #??????????????? | | ???????????????## #?????????????## | | ???????????????## ###?????????????#" | | ???????????????# ##??????????????#" | | ???????????????# #??????????????#" | | ???????????????## #??????????????#" | | ????????????????# #??????????????#" | | ???????????????## #??????????????## | | ???????????????# #???????????????? | | ???????????????# #########???????# | | ???????????????## ## # ## ##?????## | | ???????????????## ##????# | | ???????????????# ###?### | | ???????????????## # ### # | | ????????????????###### ## | | ?????????????????????## | +----------------------------------------------------+ Best States ------------- Heat Dissipation 39 Energy Generation 12 Energy Capacity 265 Matter Stores 300 Matter Capacity 300 Sight Range 16 Terrain Scan Density 10 Armor Coverage 150 Evasion (%) 50 Recoil Reduction 2 Item Schematics ----------------- None Robot Schematics ------------------ None Fabricated ------------ Nothing Alien Tech Used ----------------- None Achievements -------------- None Challenges ------------ None Game ------ Seed FocalRestorationShockpuncher Manual? 0 Play Time 00:24:26 Cumulative 39.5 hours Start 2025.03.22 @ 11:15:31 End 2025.03.22 @ 11:39:01 Sessions 1 Manual Loads 0 Difficulty Rogue Special Mode None Game No. 72 Rogue 72 Adventurer 0 Explorer 0 Win Type - Total 0 Types 0/0/0/0/0/0/0/0/0 Lore% 37 Gallery% 38 Achievement% 34 Wizard Run 0 Options --------- Layout 0 ASCII 0 Keyboard 0 Movement Mouse Keybinds 0 Fullscreen 1 Font 16/SmallcapsGlow Map View 75x55 Zoom Use 0% Tactical HUD 1 Map Filters NONE Filters NONE Steam 1 RUN: 941bfa86-324a-40dd-90ee-395a46a0e48b